bitfinex/quotes_ETHUSD_20220105
["timestamp","ask_amount","ask_price","bid_price","bid_amount"]
[1641423840582,0.15438809,3526.3,3524.1,0.00506842]
[1641423840781,0.15438809,3526.3,3524.4,0.01295453]
[1641423840982,0.01023162,3525.8,3524.9,12.0]
[1641423841181,0.01023162,3525.8,3524.9,12.345]
[1641423841423,0.00966319,3525.7,3524.9,12.345]
[1641423841851,0.15438809,3526.3,3524.9,12.345]
[1641423841852,0.00909477,3525.6,3524.9,12.345]
[1641423842226,2.635e-05,3525.5,3524.9,12.345]
[1641423842436,2.635e-05,3525.5,3525.1,16.71]
[1641423842636,0.15438809,3526.3,3525.2,6.03098136]
[1641423842637,9.34e-05,3526.3,3525.2,6.03098136]
[1641423842837,0.01278803,3527.2,3525.3,69.05]
[1641423843034,0.01278803,3527.2,3525.5,16.71]
[1641423843233,0.00511581,3527.1,3526.2,12.0]
[1641423843434,0.00511581,3527.1,3526.3,0.345]
[1641423843634,4.739e-05,3527.0,3526.3,0.345]
[1641423843834,4.739e-05,3527.0,3526.3,0.41054899]
[1641423844034,0.00686847,3528.2,3526.4,0.00336315]
[1641423844234,0.00686847,3528.2,3526.5,0.345]
[1641423844434,0.00630005,3528.1,3527.3,12.0]
[1641423844634,0.00630005,3528.1,3527.4,0.345]
[1641423844833,0.71807673,3529.3,3527.4,0.345]
[1641423844834,0.00573162,3528.0,3527.4,0.345]
[1641423845282,0.0051632,3527.9,3527.4,0.345]
[1641423845479,0.0051632,3527.9,3527.4,0.41054899]
[1641423845680,9.478e-05,3527.8,3527.5,16.71]
[1641423845877,0.8436,3529.2,3527.7,85.72257471]
[1641423846077,0.8436,3529.2,3528.4,16.71]
[1641423846278,0.8436,3529.2,3528.5,0.345]
[1641423846279,0.0073895,3529.1,3528.5,0.345]
[1641423846477,0.36328976,3529.2,3528.5,0.345]
[1641423846779,0.36328976,3529.2,3528.6,0.00284212]
[1641423847385,0.36328976,3529.2,3528.4,0.00397896]
[1641423847788,0.42883875,3529.1,3528.4,0.00397896]
[1641423847985,0.01282129,3528.6,3527.8,5.6693]
[1641423848185,0.01282129,3528.6,3525.8,0.35701336]
[1641423848386,0.01282129,3528.6,3525.8,0.345]
[1641423848387,0.01232801,3527.9,3525.8,0.345]
[1641423848589,0.01232801,3527.9,3525.9,0.01421059]
[1641423848790,0.06554899,3527.8,3525.9,0.01421059]
[1641423849028,0.37621488,3527.1,3525.9,0.01421059]
[1641423849226,0.67621488,3527.1,3525.3,0.01762113]
[1641423849432,0.36328976,3527.0,3525.3,0.01762113]
[1641423849626,0.42883875,3527.0,3525.3,0.01762113]
[1641423849829,0.06554899,3526.9,3525.3,0.01762113]
[1641423850026,0.36328976,3526.8,3525.3,0.01762113]
[1641423850329,0.36328976,3526.0,3525.3,0.01762113]
[1641423850729,0.36328976,3525.9,3525.3,0.01762113]
[1641423851127,0.36328976,3525.9,3523.6,2.12395618]
[1641423851128,0.36328976,3525.9,3524.5,0.02216852]
[1641423851327,0.36328976,3525.9,3523.9,0.02557906]
[1641423852230,1.36328976,3525.9,3523.9,0.02557906]
[1641423852678,0.36328976,3525.9,3523.9,0.02557906]
[1641423852883,0.36328976,3525.9,3524.6,0.01232716]
[1641423853280,0.36328976,3525.9,3524.7,0.02103167]
[1641423853683,0.36328976,3525.9,3524.4,1.99270304]
[1641423853885,0.00625266,3525.8,3524.4,0.00170527]
[1641423854084,0.00625266,3525.8,3524.8,0.00176444]
[1641423854286,0.00568423,3525.7,3524.8,0.00176444]
[1641423854689,0.00511581,3525.6,3524.8,0.00176444]
[1641423855087,0.00454739,3525.5,3524.8,0.00176444]
[1641423855494,0.00397896,3525.4,3524.8,0.00176444]
[1641423855887,0.66328976,3525.9,3524.8,0.00176444]
[1641423855888,0.00341054,3525.3,3524.8,0.00176444]
[1641423856287,0.00284212,3525.2,3524.8,0.00176444]
[1641423856731,0.00227369,3525.1,3524.8,0.00176444]
[1641423857136,0.36328976,3525.9,3525.0,85.05]
[1641423857334,0.36328976,3525.9,3525.1,2.05108184]
[1641423857535,0.36328976,3525.9,3525.2,2.17214513]
[1641423857536,0.00625266,3525.8,3525.2,2.17214513]
[1641423857934,0.00568423,3525.7,3525.2,2.17214513]
[1641423858137,0.00568423,3525.7,3525.2,18.88214513]
[1641423858339,0.00511581,3525.6,3525.2,2.17214513]
[1641423858738,0.36328976,3525.9,3525.2,2.17214513]
[1641423858739,0.00454739,3525.5,3525.2,2.17214513]
[1641423859138,0.00397896,3525.4,3525.2,2.17214513]
[1641423859539,0.00341054,3525.3,3525.2,18.88214513]
[1641423860042,0.36328976,3525.9,3525.4,16.71]
[1641423860043,1.054e-05,3525.9,3525.4,16.71]
[1641423860301,1.054e-05,3525.9,3525.5,29.35720117]
[1641423860510,1.054e-05,3525.9,3525.6,5.6728]
[1641423860705,0.6518,3528.4,3525.8,0.85599493]
[1641423860902,0.6518,3528.4,3526.0,0.70882]
[1641423861101,4.4335486,3528.5,3527.6,1.04480567]
[1641423861102,0.01251586,3528.1,3527.6,1.04480567]
[1641423861305,0.01251586,3528.1,3527.7,1.49445388]
[1641423861507,0.01194743,3528.0,3527.7,1.49445388]
[1641423861905,0.01137901,3527.9,3527.7,1.49445388]
[1641423862306,0.01081059,3527.8,3527.7,1.49445388]
[1641423863309,0.01081059,3527.8,3526.9,0.345]
[1641423863508,0.01081059,3527.8,3526.8,10.5]
[1641423863509,0.01228134,3527.7,3526.8,10.5]
[1641423863711,0.0225235,3527.7,3526.8,10.5]
[1641423863928,0.0225235,3527.7,3525.6,5.6728]
[1641423863929,0.01234399,3526.9,3525.6,5.6728]
[1641423864134,0.6518,3526.8,3525.6,5.6728]
[1641423864333,0.6518,3526.2,3525.7,1.20879839]
[1641423864532,0.6518,3526.2,3526.0,1.06714167]
[1641423864733,0.00114739,3526.1,3525.7,0.00112631]
[1641423866034,0.6518,3525.8,3525.7,0.00112631]
[1641423867889,0.00114739,3526.1,3525.7,1.97346848]
[1641423868091,0.32194739,3526.2,3525.7,0.00112631]
[1641423868289,0.32194739,3526.2,3525.8,0.00170527]
[1641423868492,0.32194739,3526.2,3525.7,0.0022737]
[1641423868890,1.20548265,3526.1,3525.7,0.0022737]
[1641423869089,0.32194739,3526.0,3525.7,0.0022737]
[1641423869290,0.32194739,3525.8,3525.7,0.0022737]
[1641423869492,0.32194739,3525.8,3524.5,2.17720757]
[1641423869698,0.32194739,3525.8,3523.7,3.7331]
[1641423869699,0.32194739,3525.0,3523.7,3.7331]
[1641423869896,0.32194739,3525.0,3523.4,1.1638]
[1641423869897,0.32194739,3525.0,3524.6,0.00625265]
[1641423870096,0.32194739,3524.9,3524.6,0.00625265]
[1641423870297,0.32194739,3524.9,3523.8,1.13962797]
[1641423870298,2.59356902,3524.8,3523.8,1.13962797]
[1641423870495,2.59356902,3524.8,3523.4,1.98204913]
[1641423870496,0.32194739,3524.1,3523.4,0.01307374]
[1641423870696,68.42194739,3524.0,3523.9,3.162e-05]
[1641423870896,68.42194739,3524.0,3522.9,10.5]
[1641423870897,68.43395318,3524.0,3522.9,10.3076]
[1641423871101,68.43395318,3524.0,3523.0,0.00511581]
[1641423871102,0.32194739,3523.8,3523.0,0.00511581]
[1641423871296,58.12194739,3523.7,3522.7,0.45]
[1641423871535,0.32194739,3523.5,3522.8,0.00113685]
[1641423871728,0.33487024,3523.2,3522.8,0.00113685]
[1641423871926,0.32194739,3522.9,3522.2,2.12395618]
[1641423872128,0.32194739,3522.8,3521.4,3.309333]
[1641423872329,0.32194739,3522.8,3521.3,2.08395618]
[1641423872330,0.32194739,3522.8,3522.3,0.00284211]
[1641423872528,0.32194739,3522.6,3522.3,0.00284211]
[1641423872728,0.62194739,3522.6,3522.3,0.00284211]
[1641423872929,0.62194739,3522.6,3521.3,2.08395618]
[1641423872930,0.32194739,3522.3,3521.3,2.08395618]
[1641423873131,0.32194739,3522.2,3522.0,5.27e-06]
[1641423873531,0.32307896,3522.2,3521.2,3.6769499]
[1641423873732,0.32307896,3522.2,3520.4,7.5591]
[1641423873733,0.32194739,3522.0,3521.9,0.5372926]
[1641423874131,0.32194739,3522.0,3520.5,1.09523196]
[1641423874132,1.01182016,3521.3,3520.5,1.09523196]
[1641423874332,25.35,3521.9,3520.9,141.9]
[1641423874333,1.14958797,3521.9,3520.9,141.9]
[1641423874530,1.14958797,3521.9,3521.4,0.01203598]
[1641423874731,1.26734478,3521.8,3521.4,0.01203598]
[1641423874931,1.26734478,3521.8,3521.5,0.00397369]
[1641423875385,0.71027,3521.6,3521.5,0.00524656]
[1641423875789,0.71027,3521.6,3521.5,0.00127287]
[1641423876187,2.26734478,3521.8,3521.5,0.00127287]
[1641423876392,1.26734478,3521.8,3521.5,0.00127287]
[1641423876587,2.56734478,3521.8,3521.6,0.00340527]
[1641423876788,1.56734478,3521.8,3521.6,0.00340527]
[1641423876988,1.0,3521.7,3521.6,0.00340527]
[1641423877187,1.0,3521.7,3521.6,0.00100527]
[1641423877387,2.86734478,3521.8,3521.5,0.00127287]
[1641423877587,2.26734478,3521.8,3521.5,0.00127287]
[1641423877787,0.71029,3521.7,3521.5,0.00127287]
[1641423878191,2.01029,3521.7,3521.5,0.00127287]
[1641423878391,0.71029,3521.7,3521.5,0.00127287]
[1641423878593,1.0,3521.7,3521.5,0.00127287]
[1641423878795,0.71011,3522.5,3521.7,1.07097215]
[1641423879039,0.7100212,3523.4,3521.7,1.07097215]
[1641423879237,0.00511581,3522.5,3521.7,1.07097215]
[1641423879438,0.00511581,3522.5,3521.7,1.06958215]
[1641423879738,0.7100212,3523.4,3522.3,74.890179]
[1641423879739,0.00454739,3522.4,3522.3,74.890179]
[1641423879940,0.00454739,3522.4,3521.8,1.14992702]
[1641423880337,0.00397897,3522.3,3521.8,1.14992702]
[1641423880539,0.00397897,3522.3,3521.7,1.0]
[1641423880739,0.00341054,3522.2,3521.7,1.0]
[1641423881137,0.00284212,3522.1,3521.7,1.0]
[1641423881541,0.0022737,3522.0,3521.7,1.0]
[1641423881739,0.0022737,3522.0,3521.8,1.19577545]
[1641423881939,1.03070569,3523.2,3521.8,1.19577545]
[1641423881940,0.00170527,3521.9,3521.8,1.19577545]
[1641423882778,0.00170527,3521.9,3521.8,3.14578583]
[1641423882984,0.00170527,3521.9,3521.8,26.49578583]
[1641423883180,0.00170527,3521.9,3521.8,1.19577545]
[1641423883582,0.00170527,3521.9,3521.7,1.0]
[1641423883985,0.00113685,3521.8,3521.7,1.0]
[1641423884685,0.79473685,3522.5,3521.8,127.75]
[1641423884887,0.79473685,3522.5,3521.9,2.4574076]
[1641423885186,0.00341054,3522.4,3521.9,2.4574076]
[1641423885389,0.00341054,3522.4,3521.7,2.4702596]
[1641423885584,0.00284212,3522.3,3521.8,2.98408948]
[1641423885785,0.00284212,3522.3,3521.8,1.00802298]
[1641423885985,0.00227369,3522.2,3521.8,0.00122585]
[1641423886426,0.79473685,3522.4,3521.7,1.00007755]
[1641423886427,0.79473685,3522.0,3521.7,1.00007755]
[1641423886627,0.79473685,3522.0,3520.3,2.12528247]
[1641423886628,0.79473685,3520.7,3520.3,2.12528247]
[1641423887027,2.06238211,3520.6,3520.4,0.00795793]
[1641423887229,1.45155805,3520.5,3520.4,0.00795793]
[1641423887435,2.2462949,3520.5,3520.4,0.00795793]
[1641423887632,1.50530685,3520.3,3520.2,0.00909478]
[1641423888033,1.50530685,3520.3,3519.3,5.37735206]
[1641423888034,0.93293682,3520.2,3519.3,3.309333]
[1641423888234,0.93293682,3520.2,3519.2,4.07356229]
[1641423888235,0.79473685,3519.3,3519.2,2.16808797]
[1641423888436,0.79473685,3519.3,3517.7,0.7054926]
[1641423888437,0.79473685,3519.1,3517.7,0.7054926]
[1641423888632,0.79473685,3519.0,3518.0,4.38601428]
[1641423888834,0.79473685,3518.5,3518.1,0.01193689]
[1641423889036,0.79473685,3518.4,3518.1,0.01193689]
[1641423889436,0.79473685,3518.2,3517.9,0.01307374]
[1641423889634,0.79473685,3518.1,3517.9,0.01307374]
[1641423890034,1.50584685,3518.0,3517.9,0.01307374]
[1641423890485,0.79473685,3517.9,3516.3,3.8275]
[1641423890683,0.79473685,3517.4,3515.9,0.39670251]
[1641423890897,0.79473685,3517.4,3516.6,0.0073895]
[1641423891087,0.79473685,3517.3,3516.6,0.0073895]
[1641423891281,0.79473685,3515.9,3515.7,2.09044896]
[1641423891488,0.79473685,3515.9,3515.7,0.00511581]
[1641423891885,0.79473685,3515.8,3515.7,0.00511581]
[1641423894136,0.96912316,3516.0,3515.8,39.3]
[1641423894339,0.8436,3515.9,3515.7,0.00511581]
[1641423894537,0.8436,3515.9,3515.6,0.6654926]
[1641423895747,1.86081847,3517.3,3515.6,0.6654926]
[1641423895748,0.03253028,3517.3,3515.6,0.6654926]
[1641423895946,3.49854788,3518.4,3517.0,0.8453]
[1641423896146,0.8436,3518.3,3517.0,0.8453]
[1641423896445,5.27e-06,3517.2,3517.1,143.8516221]
[1641423896644,0.0056895,3518.2,3517.1,140.35]
[1641423896846,0.0056895,3518.2,3517.2,7.77604896]
[1641423897045,0.00512108,3518.1,3517.2,7.77604896]
[1641423897444,5.266e-05,3518.0,3517.2,7.77604896]
[1641423897682,8.78442471,3519.3,3518.4,1.35973158]
[1641423897881,8.78442471,3519.3,3518.4,2.03563158]
[1641423898281,0.0319995,3520.5,3518.4,2.03563158]
[1641423898282,1.04075137,3520.0,3519.2,1.08748666]
[1641423898582,0.0096632,3519.7,3519.2,2.40014687]
[1641423898782,6.32e-05,3519.7,3519.6,0.01258138]
[1641423898983,4.82019834,3520.1,3519.6,0.01258138]
[1641423898984,0.00176847,3520.0,3519.6,0.35758138]
[1641423899181,6.847e-05,3520.0,3519.7,16.71]
[1641423899380,5.89483051,3520.6,3519.7,16.71]
[1641423899381,4e-08,3519.9,3519.8,0.345]
[1641423899582,4e-08,3519.9,3519.8,2.96213935]
[1641423899785,0.04,3520.8,3520.1,4.49999996]
[1641423899983,5.89483051,3522.0,3520.2,2.84202233]
[1641423900184,4.739e-05,3520.7,3520.5,0.01263923]
[1641423900483,5.89483051,3522.0,3520.7,16.66]
[1641423900484,4.74483051,3522.0,3520.7,16.66]
[1641423900683,4.74483051,3522.0,3520.8,3.55152962]
[1641423900884,2.108e-05,3521.9,3521.2,1.26099849]
[1641423901088,0.7054926,3522.9,3521.4,132.1]
[1641423901285,0.7054926,3522.9,3521.5,3.61179845]
[1641423901533,0.7054926,3522.9,3522.1,4.5]
[1641423901534,0.00341054,3522.5,3522.1,4.5]
[1641423901737,1.054e-05,3522.5,3522.2,29.92376046]
[1641423901939,0.7054926,3522.9,3522.3,137.7781]
[1641423901940,4.212e-05,3522.4,3522.3,137.7781]
[1641423902134,4.212e-05,3522.4,3522.3,157.22892134]
[1641423902341,7.36853814,3525.5,3522.4,131.9]
[1641423902538,7.36853814,3525.5,3522.3,25.90409033]
[1641423902539,7.36853814,3525.5,3522.5,3.90344743]
[1641423902540,0.13819997,3524.9,3522.5,3.90344743]
[1641423902739,0.0062632,3524.1,3522.5,3.90627901]
[1641423902939,0.0062632,3524.1,3522.6,0.00226315]
[1641423903138,0.00569478,3524.0,3522.6,0.00226315]
[1641423903339,1.11170824,3523.5,3523.2,1.3586872]
[1641423903540,1.11170824,3523.5,3522.6,0.00226315]
[1641423903739,0.00228423,3523.4,3522.6,0.00226315]
[1641423904139,0.00171581,3523.3,3522.4,0.0034]
[1641423904539,0.06669638,3523.2,3522.4,0.0034]
[1641423904738,1.02518065,3522.6,3522.4,0.0034]
[1641423904941,1.4201093,3523.4,3522.4,0.0034]
[1641423904942,0.71012,3522.9,3522.4,0.0034]
[1641423905178,1.45893861,3523.4,3522.4,2.04284335]
[1641423905179,0.00228423,3523.4,3522.4,2.04284335]
[1641423905383,4.98647054,3524.9,3522.4,2.04284335]
[1641423905384,0.00171581,3523.3,3522.4,2.04284335]
[1641423905585,0.00171581,3523.3,3522.6,1.18995942]
[1641423905784,1.26330954,3523.2,3522.6,1.18995942]
[1641423905985,1.76788478,3523.1,3522.7,0.00169473]
[1641423906286,1.83343377,3523.1,3520.6,0.345]
[1641423906485,1.83343377,3523.1,3522.4,0.00170527]
[1641423906486,0.01272122,3522.8,3522.4,0.00170527]
[1641423906685,0.01272122,3522.8,3520.7,2.10013582]
[1641423906884,0.01272122,3522.8,3520.8,0.00909478]
[1641423906885,1.09920743,3521.2,3520.8,0.00909478]
[1641423907286,1.09920743,3521.2,3520.1,0.01265131]
[1641423907287,1.09920743,3521.2,3520.6,0.01023162]
[1641423907489,1.39920743,3521.2,3520.6,0.01023162]
[1641423907689,1.69920743,3521.2,3520.2,0.01250532]
[1641423907887,1.69920743,3521.2,3520.8,1.46895916]
[1641423907888,1.39920743,3521.2,3520.8,1.46895916]
[1641423908087,1.39920743,3521.2,3519.9,0.01421059]
[1641423908088,1.39920743,3521.2,3520.7,0.00097176]
[1641423908287,1.39920743,3521.2,3520.9,0.00852635]
[1641423908688,0.6,3521.2,3520.9,0.00852635]
[1641423908943,1.7102769,3521.6,3520.9,0.00852635]
[1641423908944,0.3,3521.4,3520.9,0.00852635]
[1641423909145,0.3,3521.2,3520.9,0.00762635]
[1641423909444,0.3,3521.2,3520.7,0.00097176]
[1641423909445,0.3,3521.2,3520.8,0.00819478]
[1641423909748,0.00170527,3521.1,3520.6,0.00111528]
[1641423910150,0.00170527,3521.1,3519.0,2.10891756]
[1641423910151,1.4213031,3520.2,3519.0,2.10891756]
[1641423910346,1.4213031,3520.2,3518.8,3.8095]
[1641423910347,1.42139,3519.9,3518.8,3.8095]
[1641423910545,1.42139,3519.9,3519.1,0.00966319]
[1641423910546,2.02139,3519.9,3519.1,0.00966319]
[1641423910945,2.02139,3519.9,3518.6,0.01250531]
[1641423911143,1.13883145,3518.9,3518.6,0.01250531]
[1641423911344,0.71079,3519.3,3518.5,0.01307374]
[1641423911547,0.6,3519.9,3518.8,0.01269197]
[1641423911548,0.3,3519.9,3518.8,0.01269197]
[1641423911743,1.55943807,3520.3,3518.8,0.01269197]
[1641423911946,0.13819997,3520.3,3518.9,0.01080004]
[1641423912343,0.7104904,3520.5,3520.1,1.35402335]
[1641423912544,1.36473311,3520.8,3520.1,1.35402335]
[1641423912790,1.42092,3521.1,3520.1,1.35402335]
[1641423912791,6.23478654,3521.4,3520.2,0.00341054]
[1641423912983,4.81401654,3521.4,3520.2,0.00341054]
[1641423913282,4.81401654,3520.9,3520.5,1.42534851]
[1641423913484,4.81401654,3520.9,3520.2,0.00341054]
[1641423913686,4.81401654,3520.9,3520.6,0.00113684]
[1641423913886,4.81401654,3520.9,3520.2,0.00341054]
[1641423914085,1.88023806,3521.1,3520.0,0.00454738]
[1641423914486,1.19487455,3520.4,3520.0,0.00454738]
[1641423914891,1.3509883,3520.2,3520.0,0.00454738]
[1641423915295,1.6509883,3520.2,3520.0,0.00454738]
[1641423916538,1.3509883,3520.2,3520.0,0.00454738]
[1641423917442,1.0,3520.3,3520.0,0.00454738]
[1641423917644,1.19487455,3520.4,3520.0,0.00454738]
[1641423917848,1.49487455,3520.4,3520.0,0.00454738]
[1641423920300,0.3,3520.4,3520.0,0.00454738]
[1641423920503,1.0,3520.5,3520.0,0.00454738]
[1641423920504,1.3,3520.5,3520.0,0.00454738]
[1641423920706,0.3,3520.5,3520.0,0.00454738]
[1641423920900,1.0,3520.5,3520.0,0.00454738]
[1641423921199,1.69148723,3520.6,3520.0,0.00454738]
[1641423921403,0.3,3520.6,3520.0,0.00454738]
[1641423921608,0.00113685,3521.0,3520.0,0.00454738]
[1641423922205,1.09766327,3520.8,3520.2,1.36708785]
[1641423922406,1.35558211,3520.7,3520.0,0.00454738]
[1641423922708,0.00113685,3521.0,3520.0,0.00454738]
[1641423923508,0.00113685,3521.0,3520.1,0.35716085]
[1641423923708,0.00113685,3521.0,3520.7,1.32352574]
[1641423923932,0.00113685,3521.0,3520.2,0.00341054]
[1641423924133,0.00113685,3521.0,3520.2,0.34841054]
[1641423924535,0.00113685,3521.0,3520.3,0.00284211]
[1641423924937,0.00113685,3521.0,3520.6,1.11012903]
[1641423925341,0.00113685,3521.0,3520.3,1.03045686]
[1641423925742,0.00113685,3521.0,3520.4,0.00227369]
[1641423926540,1.1055795,3520.8,3520.4,0.00227369]
[1641423926742,1.4055795,3520.8,3520.4,0.00227369]
[1641423926940,1.4055795,3520.8,3520.0,0.00454738]
[1641423926941,1.7055795,3520.8,3520.0,0.00454738]
[1641423927339,1.7055795,3520.8,3519.4,0.00795792]
[1641423927540,1.7055795,3520.8,3519.8,1.48154532]
[1641423927782,1.21772862,3520.3,3519.8,1.48154532]
[1641423927983,1.21772862,3520.3,3519.9,0.00511581]
[1641423928184,1.51772862,3520.3,3519.9,0.00511581]
[1641423928390,0.3,3520.3,3519.9,0.00511581]
[1641423928587,1.0,3520.9,3519.9,0.00511581]
[1641423928790,1.0,3520.6,3519.7,0.00625265]
[1641423928990,0.00113685,3521.0,3520.1,0.01224901]
[1641423929388,0.00113685,3521.0,3520.7,1.43806854]
[1641423929591,1.12315034,3521.0,3520.7,1.43806854]
[1641423929787,1.12315034,3521.0,3520.3,7.10788006]
[1641423929788,1.12315034,3521.0,3520.3,23.81788006]
[1641423929988,1.12315034,3521.0,3520.3,24.16288006]
[1641423930290,5.034e-05,3521.0,3520.4,0.00227369]
[1641423930487,5.034e-05,3521.0,3520.4,0.00341054]
[1641423930890,1.29343105,3521.2,3520.4,0.00341054]
[1641423931290,0.7101947,3521.8,3520.4,0.00341054]
[1641423931548,1.3101947,3521.8,3520.4,0.00341054]
[1641423931745,0.00397897,3521.7,3520.5,0.71012]
[1641423931949,1.19562192,3521.5,3520.6,1.30512229]
[1641423932145,1.19562192,3521.5,3520.6,0.00227369]
[1641423932345,0.00227369,3521.4,3520.7,0.00170527]
[1641423932545,0.00227369,3521.4,3520.6,0.00227369]
[1641423932744,1.420778,3521.1,3520.4,0.00341054]
[1641423932945,0.7103869,3520.9,3520.4,0.00341054]
[1641423933145,2.33862672,3520.4,3519.9,1.41319291]
[1641423933344,1.21364256,3520.4,3519.9,1.41319291]
[1641423933547,1.0,3520.8,3520.0,0.00568423]
[1641423933745,1.4207769,3520.9,3520.0,0.00568423]
[1641423933944,0.3,3520.8,3520.0,0.00568423]
[1641423934145,1.42081,3521.3,3520.0,0.00568423]
[1641423934146,0.7102938,3521.2,3520.0,0.00568423]
[1641423934345,1.0,3520.9,3520.0,0.00568423]
[1641423934547,1.36486655,3521.0,3520.2,1.22359125]
[1641423934846,1.36486655,3521.0,3520.3,0.00397896]
[1641423935046,0.71143065,3521.2,3520.3,0.00397896]
[1641423935485,1.01143065,3521.2,3520.3,0.00397896]
[1641423935686,1.45187368,3520.8,3520.3,0.00397896]
[1641423935986,1.45187368,3520.8,3519.9,1.41319291]
[1641423935987,1.75187368,3520.8,3520.0,0.00568423]
[1641423936785,1.25101534,3520.6,3520.0,0.00568423]
[1641423936987,2.16224028,3520.8,3520.0,0.00568423]
[1641423937187,1.0,3520.7,3520.0,0.00568423]
[1641423937387,1.45187368,3520.8,3520.0,0.00568423]
[1641423937787,2.05187368,3520.8,3520.0,0.00568423]
[1641423937987,1.45187368,3520.8,3519.7,0.0073895]
[1641423938287,1.75187368,3520.8,3519.7,0.0073895]
[1641423938488,0.3,3520.4,3519.7,0.0073895]
[1641423938692,1.64970475,3520.4,3519.7,0.0073895]
[1641423938948,1.40833752,3519.8,3519.7,0.0073895]
[1641423939148,1.40833752,3519.8,3519.2,1.3445418]
[1641423939149,1.68858395,3519.8,3519.3,0.0096632]
[1641423939348,1.68858395,3519.8,3519.7,0.0073895]
[1641423939547,1.68858395,3519.8,3519.3,0.0096632]
[1641423939751,2.39915395,3519.8,3519.3,0.0096632]
[1641423939951,2.39915395,3519.8,3518.7,0.01307374]
[1641423940450,1.46351442,3519.7,3519.4,0.00082938]
[1641423940649,5.06062,3519.5,3519.4,2.938e-05]
[1641423940952,5.33344046,3518.4,3517.0,0.8453]
[1641423941152,0.45,3518.3,3517.0,0.8453]
[1641423941355,0.07930497,3517.7,3517.0,0.8453]
[1641423941556,0.07930497,3517.7,3516.3,3.03236423]
[1641423941557,0.76590243,3517.0,3516.3,3.03236423]
[1641423941753,0.76590243,3517.0,3515.6,0.6654926]
[1641423941754,1.0562,3516.9,3515.6,0.6654926]
[1641423941953,0.7114022,3516.3,3515.6,0.6654926]
[1641423942153,0.01203914,3515.9,3515.7,0.03012644]
[1641423942359,0.01203914,3515.9,3515.6,0.6654926]
[1641423942360,1.09743914,3515.9,3515.6,0.6654926]
[1641423942553,1.09743914,3515.9,3515.6,9.26e-05]
[1641423942554,1.69743914,3515.9,3515.6,9.26e-05]
[1641423942781,5.74552177,3515.7,3515.6,0.04]
[1641423942984,6.69052177,3515.7,3515.2,0.94572411]
[1641423943185,7.69052177,3515.7,3514.4,3.48376238]
[1641423943482,7.69052177,3515.7,3515.1,1.66e-06]
[1641423943681,1.4233962,3514.8,3513.6,2.10959092]
[1641423943898,0.71175,3514.0,3513.5,0.7054926]
[1641423944087,0.7117653,3513.9,3513.5,0.65758737]
[1641423944286,0.71290215,3513.9,3513.5,0.65758737]
[1641423944487,0.71290215,3513.9,3513.5,0.61758737]
[1641423944689,0.00113685,3513.9,3513.5,0.61758737]
[1641423944888,0.00113685,3513.9,3513.6,1.15284623]
[1641423945086,0.00113685,3513.9,3513.6,1.09584623]
[1641423945488,0.00113685,3513.9,3513.5,1.70482875]
[1641423945688,0.00113685,3513.9,3513.5,0.61758737]
[1641423947138,0.7117867,3513.8,3513.5,0.61758737]
[1641423947539,0.00113685,3513.9,3513.5,0.61758737]
[1641423947940,0.00113685,3513.9,3513.6,1.17719447]
[1641423948340,0.00113685,3513.9,3513.6,3.25086476]
[1641423948341,3.685e-05,3513.9,3513.6,3.25086476]
[1641423948640,3.685e-05,3513.9,3513.7,5.75854899]
[1641423949043,3.685e-05,3513.9,3513.8,142.31554899]
[1641423949639,3.685e-05,3513.9,3513.8,4.56554899]
[1641423949840,3.685e-05,3513.9,3513.8,4.5]
[1641423950286,0.01230034,3515.0,3513.8,4.5]
[1641423950488,0.7116873,3514.5,3513.8,4.5]
[1641423950692,2.19323643,3514.5,3514.3,1.11450717]
[1641423950890,0.71169,3514.4,3514.3,1.11450717]
[1641423951091,1.71169,3514.4,3513.9,0.00149863]
[1641423951291,0.3,3514.2,3513.9,0.00149863]
[1641423951693,0.00113684,3514.1,3513.9,0.00149863]
[1641423952089,0.00227369,3514.3,3513.9,0.00149863]
[1641423952292,0.00227369,3514.3,3514.0,1.45481233]
[1641423952490,0.3,3514.4,3514.0,1.45481233]
[1641423952491,0.00170527,3514.2,3514.0,1.45481233]
[1641423952691,0.00170527,3514.2,3514.1,78.08879286]
[1641423952892,0.71161,3516.2,3514.1,78.08879286]
[1641423952893,6.94879654,3515.9,3514.1,76.9]
[1641423953091,4.81401654,3515.9,3514.3,0.01297424]
[1641423953291,2.108e-05,3515.1,3514.3,0.72427424]
[1641423953492,9.27247591,3516.5,3515.0,4.5]
[1641423953695,9.27247591,3516.5,3515.1,3.31077579]
[1641423953944,0.00341054,3516.4,3516.1,1.34650592]
[1641423954347,0.00284212,3516.3,3516.1,1.34650592]
[1641423954742,0.00227369,3516.2,3516.1,1.34650592]
[1641423955743,0.00227369,3516.2,3516.1,3.51920644]
[1641423955944,0.00227369,3516.2,3516.1,1.34650592]
[1641423958797,0.00227369,3516.2,3516.1,3.67799833]
[1641423958997,0.00227369,3516.2,3516.1,1.34650592]
[1641423960401,7.369e-05,3516.2,3516.1,3.52936353]
[1641423960605,8.0734868,3518.9,3516.2,132.9]
[1641423960606,7.35393732,3518.4,3516.2,132.9]
[1641423960804,7.35393732,3518.4,3516.1,3.5422946]
[1641423960805,6.94536658,3518.4,3517.2,0.06449353]
[1641423961004,6.94536658,3518.4,3518.2,1.51501272]
[1641423961203,0.52486972,3518.4,3518.2,1.51501272]
[1641423961645,0.52486972,3518.4,3518.3,0.00089872]
[1641423962047,9.73737504,3518.4,3518.3,0.00089872]
[1641423962250,0.83737504,3518.4,3518.3,0.00089872]
[1641423962447,2.13737504,3518.4,3518.3,0.00089872]
[1641423962646,0.83737504,3518.4,3518.3,0.00089872]
[1641423962852,1.40473581,3516.8,3516.4,1.27447506]
[1641423963050,1.40473581,3516.8,3515.5,6.128]
[1641423963051,0.6,3516.8,3515.5,2.0]
[1641423963248,0.00284212,3516.7,3515.5,2.0]
[1641423963449,0.00284212,3516.7,3515.6,0.00341054]
[1641423963648,0.0022737,3516.6,3515.6,0.00341054]
[1641423964051,0.71149,3515.8,3515.6,0.00341054]
[1641423964450,2.01149,3515.8,3515.6,0.00341054]
[1641423964650,2.31149,3515.8,3515.6,0.00341054]
[1641423965311,2.31149,3515.8,3515.6,1.25991399]
[1641423965509,2.31149,3515.8,3514.7,0.00852635]
[1641423965710,2.31149,3515.8,3515.7,0.00284211]
[1641423965711,1.31149,3515.8,3515.7,0.00284211]
[1641423965911,1.31149,3515.8,3514.7,0.00852635]
[1641423966111,1.31149,3515.8,3515.1,1.34398632]
[1641423966309,0.71149,3515.8,3515.1,1.34398632]
[1641423966509,0.00170528,3516.5,3515.2,0.00568423]
[1641423966510,0.7113,3516.4,3515.2,0.00568423]
[1641423966910,0.71243685,3516.4,3515.2,0.00568423]
[1641423967515,0.71139,3516.0,3515.2,0.00568423]